Cogmind - Beta 14 @@@ ROGUE MODE // 2024.08.11 @ 13:55:30 Player: Compilatron Result: Destroyed by LT-WUT(R) with Subdweller Laser Performance ------------- Evolutions (0) 0 Regions Visited (2) 400 Robots Destroyed (17) 85 Value Destroyed (418) 418 Prototype IDs (1) 20 Alien Tech Used (0) 0 Bonus (0) 0 TOTAL SCORE: 923 Bonus ------- None Cogmind --------- Core Integrity 0/250 Matter 262/300 Energy 176/180 System Corruption 0% Temperature Cool (15) Movement Rolling (110) Location -10/Subcaves Parts ------- > --- POWER (1) -------- Meta Core > --- PROPULSION (2+1) - Subdweller Monowheel (+) Subdweller Monowheel Subdweller Monowheel > --- UTILITY (2+1) ---- High-capacity Storage Unit Structural Scanner > --- WEAPON (2+1) ----- Subdweller Laser Heavy Battle Rifle (+) Grenade Launcher > --- INVENTORY (20) --- Light Ion Engine Disposable Heat Sink Large Storage Unit High-capacity Battery (250) High-capacity Matter Pod (200) Visual Processing Unit Sensor Array Hacking Suite Makeshift Hacking Suite Subdweller Beam Cannon Battle Rifle Subdweller Machine Gun Subdweller Machine Gun Subdweller Machine Gun Datajack Scrap Shield Fragment (46) Peak State ------------ > --- POWER ------------ Meta Core > --- PROPULSION ------- Subdweller Monowheel Subdweller Monowheel Subdweller Monowheel > --- UTILITY ---------- High-capacity Storage Unit Structural Scanner > --- WEAPON ----------- Subdweller Laser Heavy Battle Rifle Grenade Launcher > --- INVENTORY -------- Light Ion Engine Disposable Heat Sink Large Storage Unit High-capacity Battery High-capacity Matter Pod Visual Processing Unit Sensor Array Hacking Suite Makeshift Hacking Suite Subdweller Beam Cannon Battle Rifle Subdweller Machine Gun Subdweller Machine Gun Subdweller Machine Gun Datajack Scrap Shield Fragment [Rating: 30] Favorites ----------- Power Light Ion Engine Engine Light Ion Engine Power Core Meta Core Propulsion Light Treads Treads Light Treads Wheel Subdweller Monowheel Utility Structural Scanner Device Structural Scanner Storage High-capacity Storage Unit Weapon Assault Rifle Energy Gun Small Laser Ballistic Gun Assault Rifle Launcher Grenade Launcher Special Melee Weapon Datajack Build | -11 -10 -10 ------- Run | Yrd Mat Sub Slots Evolved . | . . . Power . | . . . Propulsion . | . . . Utility . | . . . Weapon . | . . . Parts Attached 27 | 7 6 14 Power 4 | 1 . 3 Engine 3 | 1 . 2 Core 1 | . . 1 Reactor . | . . . Propulsion 5 | 2 . 3 Treads 2 | 2 . . Leg . | . . . Wheel 3 | . . 3 Hover . | . . . Flight . | . . . Utility 5 | 2 3 . Device 2 | 1 1 . Storage 3 | 1 2 . Processor . | . . . Hackware . | . . . Protection . | . . . Artifact . | . . . Weapon 13 | 2 3 8 Energy Gun 4 | 1 1 2 Energy Cannon . | . . . Ballistic Gun 6 | 1 1 4 Ballistic Cannon . | . . . Launcher 2 | . . 2 Special Weapon . | . . . Impact Weapon . | . . . Slashing Weapon . | . . . Piercing Weapon . | . . . Special Melee Weapon 1 | . 1 . Unidentified Prototypes 1 | . . 1 Parts Lost 8 | . 1 7 Power 2 | . . 2 Propulsion 2 | . . 2 Utility 1 | . 1 . Weapon 3 | . . 3 Highest Loss Streak 7 | . 1 7 To Critical Strikes . | . . . Average Slot Usage (%) 97 | . 99 94 Engine 12 | . 14 11 Treads 25 | . 28 21 Wheel 1 | . . 4 Device 13 | . 13 13 Storage 14 | . 14 13 Energy Gun 6 | . 9 2 Ballistic Gun 19 | . 17 20 Launcher 1 | . . 4 Peak Build Rating 30 | 7 8 30 Average Rating 9 | 4 7 14 On Entrance 5 | . 7 8 Naked Turns . | . . . Heaviest Build 58 | 12 48 58 Greatest Support 60 | 40 40 60 Greatest Overweight (x) 2 | . 1 2 Average Overweight (x) . | . . . Largest Inventory Capacity 20 | 8 20 20 Average Capacity 15 | 7 14 20 Most Carried 20 | 5 12 20 Average Carried 11 | 4 8 16 Final Capacity 20 | 8 20 20 Final Carried 16 | 4 11 16 Class Distribution -------------------- 92% | Mutant 7% | Scavenger-Skirmisher Dominant Class ---------------- Mutant | -10/Materials Mutant | -10/Subcaves Resources | -11 -10 -10 ----------- Run | Yrd Mat Sub Matter Collected 854 | 167 353 334 Remotely . | . . . Salvage Created 519 | 66 149 304 Parts 45 | 8 16 21 Haulers Intercepted . | . . . Recyclers Shooed . | . . . Parts Field Recycled . | . . . Retrieved Matter . | . . . Parts Self-Destructed 8 | . . 8 Prevented . | . . . Kills | -11 -10 -10 ------- Run | Yrd Mat Sub Combat Hostiles Destroyed 11 | . 4 7 Guns 10 | . 4 6 AOE 1 | . . 1 Classes Destroyed 7 | 1 4 2 Tunneler 3 | 3 . . Operator 1 | . 1 . Watcher 2 | . 2 . Swarmer 3 | . 3 . Grunt 1 | . 1 . Sentry 1 | . . 1 Subdweller 6 | . . 6 Best Kill Streak 4 | 1 4 3 Combat Bots Only 3 | . 3 3 Max Kills in Single Turn 2 | 1 2 1 Gunslinging 1 | . 1 . Exploded 1 | . . 1 Melee . | . . . Uniques/NPCs Destroyed . | . . . Combat | -11 -10 -10 -------- Run | Yrd Mat Sub Hostile Shots Fired 58 | . 12 46 Missed 13 | . 3 10 Damage Taken 1056 | . 80 976 Core 267 | . 17 250 Absorbed by Shields . | . . . Core Remaining (%) 100 | 100 . . Volleys Fired 61 | 5 18 38 Largest 2 | 2 2 2 Hottest 93 | 60 60 93 Shots Fired 105 | 10 35 60 Gun 102 | 10 35 57 Cannon . | . . . Launcher 3 | . . 3 Special . | . . . Kinetic 67 | 5 18 44 Thermal 30 | 5 17 8 Explosive 3 | . . 3 Electromagnetic 5 | . . 5 Robot Hit Streak 9 | 3 4 9 Robot Miss Streak 3 | 2 3 3 Penetration Max . | . . . Secondary Targets 3 | . 1 2 Max Gunslinging Chain 1 | . 1 1 Shots Hit Robots 75 | 6 22 47 Core Hits 27 | 3 9 15 Critical Kills . | . . . Critical Parts Destroyed 1 | . . 1 Critical Strikes 1 | . . 1 Destroy 1 | . . 1 Melee Attacks 2 | . 2 . Impact . | . . . Slashing . | . . . Piercing . | . . . Sneak Attacks 2 | . 2 . Combat Hostiles . | . . . Follow-up Attacks . | . . . Damage Inflicted 1177 | 66 247 864 Guns 1043 | 66 247 730 Cannons . | . . . Explosions 134 | . . 134 Melee . | . . . Ramming . | . . . Kinetic 684 | 23 135 526 Thermal 301 | 43 112 146 Explosive 134 | . . 134 Electromagnetic 58 | . . 58 Impact . | . . . Slashing . | . . . Piercing . | . . . Highest Corruption . | . . . Average Corruption . | . . . Corruption Purged . | . . . Corruption Blocked . | . . . Overload Shots . | . . . Overflow Damage . | . . . Projectiles . | . . . Explosions . | . . . Melee . | . . . Knockbacks . | . . . Impact . | . . . Kinetic . | . . . Secondary . | . . . Self-Inflicted Damage . | . . . Shots . | . . . Rammed . | . . . Targets Rammed . | . . . Kicked . | . . . Crushed . | . . . Highest Temperature 24 | . 24 . Average Temperature 16 | . 16 . Received Heat Transfer 180 | . 24 156 Siege Activations . | . . . Robots Corrupted . | . . . Combat Hostiles . | . . . Parts Fried . | . . . Impact Corruptions . | . . . Robots Melted . | . . . Combat Hostiles . | . . . Parts Melted 2 | 1 . 1 Heat Transferred 525 | 100 250 175 Parts Sabotaged . | . . . Parts Stolen . | . . . Parts Stripped . | . . . Power Chain Reactions . | . . . Alert | -11 -10 -10 ------- Run | Yrd Mat Sub Peak Influence 178 | 15 178 . Initial 9 | . 9 . Average 46 | 5 54 . Maximum Alert Level . | . . . Low Security (%) 100 | 100 100 . Level 1 . | . . . Level 2 . | . . . Level 3 . | . . . Level 4 . | . . . Level 5 . | . . . High Security . | . . . Max Security . | . . . Squads Dispatched 1 | . 1 . Investigation . | . . . Extermination . | . . . Reinforcement 1 | . 1 . Assault . | . . . Garrison . | . . . Intercept . | . . . Searches Triggered . | . . . Construction Impeded . | . . . Haulers Reinforced . | . . . Active Scanning Responses . | . . . Cargo Convoy Interrupts . | . . . Stealth | -11 -10 -10 --------- Run | Yrd Mat Sub Distress Signals 1 | . 1 . Communications Jammed . | . . . Distress Signals . | . . . Times Spotted 18 | . 8 10 Peak Tracking Total 3 | . 3 3 Tactical Retreats . | . . . Traps | -11 -10 -10 ------- Run | Yrd Mat Sub Traps Triggered . | . . . Indirectly . | . . . Trap Hack Attempts . | . . . Triggered . | . . . Disarmed 9 | . 9 . Reprogrammed . | . . . Reused . | . . . Traps Extracted . | . . . Installed . | . . . Triggered . | . . . Machines | -11 -10 -10 ---------- Run | Yrd Mat Sub Machines Disabled . | . . . Max in Single Turn . | . . . Machines Repaired . | . . . Machines Dismantled . | . . . Machines Sabotaged . | . . . Overloaded Fab Kills . | . . . Hacking | -11 -10 -10 --------- Run | Yrd Mat Sub Machines Accessed 5 | . 5 . Terminals 3 | . 3 . Fabricators . | . . . Repair Stations . | . . . Recycling Units 2 | . 2 . Scanalyzers . | . . . Garrison Access . | . . . Total Hacks 18 | . 18 . Successful 9 | . 9 . Failed 9 | . 9 . Catastrophic 1 | . 1 . Database Lockouts . | . . . Manual 11 | . 11 . Terminals 12 | . 12 . Fabricators . | . . . Repair Stations . | . . . Recycling Units 6 | . 6 . Scanalyzers . | . . . Garrison Access . | . . . Terminal Hacks 3 | . 3 . Locate Traps 1 | . 1 . Disarm Traps 2 | . 2 . Fabricator Hacks . | . . . Repair Station Hacks . | . . . Recycling Unit Hacks 1 | . 1 . Retrieve Components 1 | . 1 . Scanalyzer . | . . . Garrison Access Hacks . | . . . Unauthorized Hacks 5 | . 5 . Terminals 3 | . 3 . Botnet 2 | . 2 . Operators 1 | . 1 . Fabricators . | . . . Repair Stations . | . . . Recycling Units 2 | . 2 . Reject 2 | . 2 . Scanalyzers . | . . . Garrison Access . | . . . Data Cores Recovered . | . . . Used . | . . . Hacking Detections 5 | . 5 . Full Trace Events . | . . . Feedback Events . | . . . Feedback Blocked . | . . . Robot Schematics Acquired . | . . . Robots Built . | . . . Authchips . | . . . Time . | . . . Total Robot Build Rating . | . . . Part Schematics Acquired . | . . . Parts Built . | . . . Authchips . | . . . Time . | . . . Total Part Build Rating . | . . . Parts Repaired . | . . . Time . | . . . Parts Recycled . | . . . Recycled Matter . | . . . Retrieved Matter . | . . . Retrieved Components 1 | . 1 . Parts Scanalyzed . | . . . Part Schematics Acquired . | . . . Parts Damaged . | . . . Bothacking | -11 -10 -10 ------------ Run | Yrd Mat Sub Used RIF Installer . | . . . Robots Hacked 1 | . 1 . Non-combat 1 | . 1 . Combat . | . . . Robot Hacks Applied 2 | . 2 . parse_system 1 | . 1 . no_distress 1 | . 1 . Relay Couplers Released . | . . . Fabnet Peak Effective % . | . . . Robots Rewired . | . . . Allies Hacked . | . . . Hacks Repelled . | . . . Allies | -11 -10 -10 -------- Run | Yrd Mat Sub Total Allies . | . . . Largest Group . | . . . Highest-Rated Group . | . . . Highest-Rated Ally . | . . . Total Orders . | . . . Ally Attacks . | . . . Total Damage . | . . . Kills . | . . . Allies Corrupted . | . . . Allies Melted . | . . . Intel | -11 -10 -10 ------- Run | Yrd Mat Sub Robot Analysis Total . | . . . Derelict Logs Recovered . | . . . Drone Launches . | . . . Drone Recoveries . | . . . Exploration | -11 -10 -10 ------------- Run | Yrd Mat Sub Turns Passed 1487 | 143 759 585 Spaces Moved 657 | 78 361 218 Core 12 | 12 . . Treads 582 | 66 361 155 Legs . | . . . Wheels 63 | . . 63 Hover . | . . . Flight . | . . . Fastest Speed 50 | 50 160 110 Average Speed 187 | 143 188 203 Slowest Speed 240 | 160 240 240 Overloaded Moves . | . . . Propulsion Burnouts . | . . . Robots Hopped . | . . . Cave-ins Triggered . | . . . Exploration Rate (%) 28 | 6 64 15 Regions Visited 2 Branch Regions 1 Pre-discovered Areas . | . . . Known Exits Taken . | . . . Unknown Exits Taken 2 | 1 1 . Scrap Searched 3 | . . 3 Spaces Dug . | . . . Terrain Destroyed 16 | . . 16 Melee . | . . . Projectile . | . . . AOE 16 | . . 16 Terrain Rammed . | . . . Walls Destroyed . | . . . Machines Disabled . | . . . Actions | -11 -10 -10 --------- Run | Yrd Mat Sub Total 812 | 100 406 306 Wait 11 | . 1 10 Move 655 | 77 360 218 Hop . | . . . Pick Up 44 | 11 13 20 Fast Attach 1 | . 1 . Attach 16 | 7 . 9 Detach . | . . . Swap 10 | . 5 5 Drop 12 | . 6 6 Fire 61 | 5 18 38 Melee 2 | . 2 . Ram . | . . . Kick . | . . . Crush . | . . . Escape Stasis . | . . . Rewire . | . . . Trap . | . . . Miscellaneous . | . . . Route ------- -11/Scrapyard -10/Materials (discovered 2 exits: [*Mat] / [*Sub]) -10/Subcaves History --------- Turn | Location | Event 8 | -11/Scrapyard | Discovered new exit (range 16) 144 | -11/Scrapyard | Entered Materials 307 | -10/Materials | Build established: Mutant 676 | -10/Materials | Discovered new exit (range 16) 847 | -10/Materials | Discovered new exit (range 14) 903 | -10/Materials | Entered Subcaves 1353 | -10/Subcaves | A Subdweller sparked back to life 1353 | -10/Subcaves | A Subdweller sparked back to life 1353 | -10/Subcaves | A Subdweller sparked back to life 1363 | -10/Subcaves | Ambushed by Subdweller buried in earth 1366 | -10/Subcaves | Core integrity fell below 50% 1377 | -10/Subcaves | Core integrity fell below 20% 1399 | -10/Subcaves | Found Prototype Power Core 1400 | -10/Subcaves | Identified Meta Core 1401 | -10/Subcaves | Attached Meta Core, gained temporary slots: Propulsion, Utility, Weapon 1424 | -10/Subcaves | Lost 7 parts (2p2n3w) 1487 | -10/Subcaves | Ambushed by Subdwellers from Twisted Machinery 1488 | -10/Subcaves | Destroyed by LT-WUT(R) with Subdweller Laser Last Messages --------------- 01393_ Lgt. Ion Engine destroyed. 01393_ SH-9Y8(R) destroyed. 01399_ Acquired Prototype Power Core. 01400_ Identified Meta Core. 01401_ Core temporarily expanded with Propulsion slot. 01401_ Core temporarily expanded with Utility slot. 01401_ Core temporarily expanded with Weapon slot. 01403_ Acquired 18 matter. 01405_ Acquired Sub. Machine Gun. 01406_ Acquired 40 matter. 01409_ Acquired Sub. Machine Gun. 01410_ Acquired 55 matter. 01414_ Acquired Sub. Monowheel. 01479_ Y-45 Defender destroyed. 01486_ Lgt. Treads fries itself beyond repair. 01487_ Z0-1OF(R) emerges from the Twisted Machinery. Map ----- +----------------------------------------------------+ | ??????????????## #### "" ""???????????????? | | ??????????????### #### #" " ??????????????? | | ??????????????## ###########???????????????????? | | ??????????????## ##?#########??????????????????? | | ??????????????## ###??########?????????????????? | | ??????????????## ######## ###?????????????????? | | ??????????????## ##### ##?????????????????? | | ??????????????## ##### ##?????????????????? | | ??????????????## ### ##?????????????????? | | ??????????????### ## ###?????????????????? | | ??????????????### ##??????????????????? | | ???????????????## ###??????????????????? | | ???????????????## ####?????????????????? | | ???????????????## ####????????????????? | | ???????????????### ###????????????????? | | ???????????????### ## ##????????????????? | | ???????????????## ## ##????????????????? | | ???????????????### ###????????????????? | | ???????????????##### #####????????????????? | | ????????????????#### ####?????????????????? | | ?????????????????## ###??????????????????? | | ?????????????????### ## ##??????????????????? | | ?????????????????###### ###??????????????????? | | ??????????????????##### ####?????????????????? | | ?????????????????????## ####?????????????????? | | ?????????????????????## @ ###????????????????? | | ?????????????????????## ##????????????????? | | ?????????????????????## ##????????????????? | | ?????????????????????## ##????????????????? | | ????????????????????? ##????????????????? | | ?????????????????????? ????????????????? | | ????????????????????? #" "" ?????????????? | | ????????????????????? ### ## ????????????? | | ???????????????????? *= ###### ###???????????? | | ???????????????????? [% ###### ##???????????? | | ?????????????????? R [ ###????? #???????????? | | ?????????????????? ##"R "###???????????????????? | | ?????????????????? ## ##????????????????????? | | ??????????????????? ######????????????????????? | | ????????????????????? #####?????????????????????? | | ????????????????????????????????????????????????? | | ????????????????????????????????????????????????? | | ????????????????????????????????????????????????? | | ????????????????????????????????????????????????? | | ????????????????????????????????????????????????? | | ????????????????????????????????????????????????? | | ????????????????????????????????????????????????? | | ????????????????????????????????????????????????? | | ????????????????????????????????????????????????? | | ????????????????????????????????????????????????? | +----------------------------------------------------+ Best States ------------- Heat Dissipation 25 Energy Generation 17 Energy Capacity 180 Matter Stores 300 Matter Capacity 300 Sight Range 16 Terrain Scan Density 10 Evasion (%) 50 Recoil Reduction 2 Item Schematics ----------------- None Robot Schematics ------------------ None Fabricated ------------ Nothing Alien Tech Used ----------------- None Achievements -------------- None Challenges ------------ None Game ------ Seed AlertBoreShovel Manual? 0 Play Time 00:13:45 Cumulative 38.1 hours Start 2024.08.11 @ 13:29:08 End 2024.08.11 @ 13:55:30 Sessions 1 Manual Loads 0 Difficulty Rogue Special Mode None Game No. 52 Rogue 30 Adventurer 20 Explorer 2 Win Type - Total 0 Types 0/0/0/0/0/0/0/0/0 Lore% 26 Gallery% 32 Achievement% 30 Wizard Run 0 Options --------- Layout 1 ASCII 0 Keyboard 0 Movement Numpad Keybinds 0 Fullscreen 2 Font 24/Smallcaps Map View 50x35 Zoom Use 0% Tactical HUD 1 Map Filters NONE Filters NONE Steam 1 RUN: 26fdd698-7d5b-495f-bffc-0b4ded0dcbfe